Cogmind - Beta 16.1 @@@ ROGUE MODE // 2026.01.09 @ 03:42:07 Player: cptwinky Result: Destroyed by P-80 Master with Gamma Rifle Performance ------------- Evolutions (9) 4500 Regions Visited (23) 4600 Robots Destroyed (443) 2215 Value Destroyed (20382) 20382 Prototype IDs (37) 740 Alien Tech Used (0) 0 Bonus (15042) 15042 TOTAL SCORE: 47479 Bonus ------- Triggered High Security 500 High Alert Combat Kills 7235 Follower Combat Kills 3277 Hunted by Unchained 500 Destroyed Unchained 1000 Network Hubs Disabled 400 Met Zhirov 300 Built Enhanced Grunts 300 A7 Reached Mainframe 300 Met R17 at Cetus 500 Met R17 at Research 2000 Friendly Fire -1270 Cogmind --------- Core Integrity 0/1600 Matter 179/300 Energy 3/100 System Corruption 15% Temperature Cool (0) Movement Core (350) Ox6 Location -1/Access Parts ------- > --- POWER (3) -------- (None) > --- PROPULSION (6) --- Combat Linear Gravjet Combat Linear Gravjet > --- UTILITY (13) ----- Enhanced Optical Array Advanced Melee Analysis Suite Improved Force Booster Improved Force Booster Improved System Guard > --- WEAPON (3) ------- Plasma Lance > --- INVENTORY (5) ---- (None) Peak State ------------ > --- POWER ------------ Heavy Antimatter Reactor Heavy Antimatter Reactor Quantum Reactor > --- PROPULSION ------- Improved Heavy Treads Improved Heavy Siege Treads High-density Centrium Heavy Treads > --- UTILITY ---------- Experimental Heat Sink Advanced Cooling System Advanced Coolant Injector Huge Storage Unit Zeronet Interface Advanced Targeting Computer Advanced Targeting Computer Improved Transmission Jammer Heavy Armor Plating Layered Medium Armor Plating Experimental EM Shield Advanced Shield Generator > --- WEAPON ----------- Enhanced Quantum Rifle Enhanced Quantum Rifle Nova Cannon > --- INVENTORY -------- Heavy Antimatter Reactor Experimental Heat Sink Experimental Heat Sink Advanced Coolant Injector Energy Well Advanced Matter Compressor Advanced Melee Analysis Suite Nanoactuators Heavy Armor Plating Advanced Component Analysis Suite Dynamic Insulation System Improved Trap Extractor Compact HERF Cannon Compact HERF Cannon Enhanced Nova Cannon 6S-H0T's Six Shooter 6S-H0T's Six Shooter 6S-H0T's Six Shooter Heavy Gauss Cannon Enhanced Hardcell Cannon Micro-nuke Launcher 6S-H0T's SS Cartridge 6S-H0T's SS Cartridge [Rating: 191] Favorites ----------- Power Heavy Ion Engine Engine Heavy Ion Engine Power Core Enhanced Nuclear Core Reactor Heavy Antimatter Reactor Propulsion Light Treads Treads Light Treads Leg Myomer Leg Wheel Armored Wheel Hover Unit Improved Linear Gravjet Utility Advanced Targeting Computer Device Improved Cooling System Storage Huge Storage Unit Processor Advanced Targeting Computer Hackware Improved Hacking Suite Protection Light Armor Plating Weapon Improved Assault Rifle Energy Gun Enhanced Quantum Rifle Energy Cannon Phase Cannon Ballistic Gun Improved Assault Rifle Ballistic Cannon Light Cannon Launcher Rocket Launcher Special Weapon Enhanced Flamer Impact Weapon Power Maul Slashing Weapon Katana Piercing Weapon Plasma Lance Special Melee Weapon Improved Datajack Build | -11 -10 -10 -9 -9 -8 -8 -7 -7 -7 -7 -7 -6 -5 -5 -5 -5 -5 -4 -4 -4 -3 -2 -1 ------- Run | Yrd Mat Min Mat Min Mat Sto Fac Was Fac Low Low Fac Fac Ext Cet Arc Hub Fac Upp Upp Res Res Acc Slots Evolved 18 | . . . 2 . 2 . 2 . . . . 2 2 . . . . 2 . . 2 2 2 Power 2 | . . . . . . . . . . . . 1 . . . . . . . . . 1 . Propulsion 4 | . . . 1 . . . 1 . . . . . 1 . . . . 1 . . . . . Utility 11 | . . . 1 . 2 . . . . . . 1 1 . . . . 1 . . 2 1 2 Weapon 1 | . . . . . . . 1 . . . . . . . . . . . . . . . . Parts Attached 302 | 6 6 1 21 5 10 24 6 1 43 1 . 28 10 21 12 2 1 16 4 . 29 22 33 Power 37 | 1 . 1 1 1 2 1 2 . 2 1 . 3 3 . 2 . . 4 1 . 4 5 3 Engine 17 | 1 . 1 1 1 2 1 1 . 1 . . 3 2 . 2 . . . 1 . . . . Core 5 | . . . . . . . 1 . 1 1 . . 1 . . . . 1 . . . . . Reactor 15 | . . . . . . . . . . . . . . . . . . 3 . . 4 5 3 Propulsion 66 | 2 1 . 4 1 4 11 2 1 8 . . 7 . 6 3 . . 1 . . 7 3 5 Treads 50 | 2 . . 4 1 4 10 . 1 4 . . 6 . 5 3 . . 1 . . 4 2 3 Leg 4 | . . . . . . . . . . . . . . 1 . . . . . . 2 1 . Wheel 8 | . 1 . . . . . 2 . 4 . . 1 . . . . . . . . . . . Hover 4 | . . . . . . 1 . . . . . . . . . . . . . . 1 . 2 Flight . | . . . . . . . . . . . . . . . . . . . . . . . . Utility 122 | 1 3 . 8 2 3 6 1 . 21 . . 13 5 5 4 2 1 8 1 . 13 8 17 Device 46 | . . . 2 . . 1 1 . 8 . . 2 3 2 . . 1 4 . . 9 6 7 Storage 15 | 1 2 . 1 . . . . . 2 . . 3 1 . . . . 1 . . 1 . 3 Processor 21 | . . . 2 1 1 1 . . 3 . . 1 1 . 1 . . 1 . . 1 2 6 Hackware 3 | . . . . . . . . . 1 . . . . . . 2 . . . . . . . Protection 37 | . 1 . 3 1 2 4 . . 7 . . 7 . 3 3 . . 2 1 . 2 . 1 Artifact . | . . . . . . . . . . . . . . . . . . . . . . . . Weapon 77 | 2 2 . 8 1 1 6 1 . 12 . . 5 2 10 3 . . 3 2 . 5 6 8 Energy Gun 7 | . . . . . . 1 . . . . . . . 1 1 . . . . . 2 2 . Energy Cannon 10 | . . . . . . . . . 1 . . 2 . 2 . . . . . . 2 . 3 Ballistic Gun 31 | 2 . . 5 1 1 2 1 . 5 . . 1 1 4 2 . . 3 1 . . 1 1 Ballistic Cannon 10 | . 2 . . . . . . . 1 . . 1 . 2 . . . . . . 1 1 2 Launcher 9 | . . . 1 . . . . . 4 . . 1 1 . . . . . . . . 2 . Special Weapon 2 | . . . . . . 2 . . . . . . . . . . . . . . . . . Impact Weapon 1 | . . . . . . . . . 1 . . . . . . . . . . . . . . Slashing Weapon 2 | . . . 1 . . . . . . . . . . 1 . . . . . . . . . Piercing Weapon 2 | . . . . . . . . . . . . . . . . . . . . . . . 2 Special Melee Weapon 3 | . . . 1 . . 1 . . . . . . . . . . . . 1 . . . . Unidentified Prototypes 25 | . . . 1 . 1 2 1 . 2 . . 1 . . 4 . 1 2 . . 2 4 4 Corrupted Parts 4 | . . . . . . . . . 1 . . . . . 3 . . . . . . . . System Corruption 22 | . . . . . . . . . 9 . . . . . 13 . . . . . . . . Parts Lost 111 | . 1 . 3 3 1 7 2 . 18 1 . 6 1 7 . . 1 14 4 . 7 2 33 Power 14 | . . . . . 1 . . . . 1 . 1 . . . . 1 3 1 . 2 . 4 Propulsion 29 | . . . 2 1 . 3 1 . 5 . . 1 . 4 . . . 3 1 . 2 . 6 Utility 46 | . 1 . 1 2 . 4 1 . 4 . . 3 1 3 . . . 4 2 . 2 2 16 Weapon 22 | . . . . . . . . . 9 . . 1 . . . . . 4 . . 1 . 7 Highest Loss Streak 22 | . 1 . 2 2 1 2 2 . 4 1 . 3 1 4 . . 1 8 4 . 4 1 22 To Critical Strikes 2 | . . . . . . . . . 1 . . . . 1 . . . . . . . . . Average Backups 20 | 1 13 19 19 24 24 23 24 24 22 19 23 21 19 22 22 23 23 20 13 5 12 23 18 Power 1 | . 1 1 . . . 1 1 2 1 . . 1 3 2 1 2 2 . . . . 1 . Propulsion 1 | . . 2 3 6 6 3 . . 1 3 3 2 . 1 . 1 1 . . . . 1 . Utility 7 | . 3 5 5 5 5 5 7 8 11 10 13 11 6 9 9 8 8 7 5 2 6 11 8 Weapon 8 | . 7 9 8 9 9 10 12 12 8 3 6 6 7 8 10 11 11 10 7 2 4 7 9 Tool/Special . | . . . . . . . . . . . . . . . . . . . . . . . . Unused Backups 92 | . 4 1 22 2 1 21 . 2 16 . . 5 1 2 1 . . . 2 . 3 6 3 Power 11 | . . . 2 . . 4 . . 2 . . . 1 . . . . . . . 2 . . Propulsion 11 | . . . 4 . . 4 . . 3 . . . . . . . . . . . . . . Utility 34 | . . 1 6 2 1 7 . 1 8 . . 2 . . 1 . . . . . . 3 2 Weapon 36 | . 4 . 10 . . 6 . 1 3 . . 3 . 2 . . . . 2 . 1 3 1 Tool/Special . | . . . . . . . . . . . . . . . . . . . . . . . . Average Slot Usage (%) 87 | . 97 85 99 99 93 98 92 94 87 76 76 88 86 90 82 86 87 80 41 15 56 80 71 Engine 6 | . 14 14 11 11 8 9 6 7 4 3 . 5 5 5 5 5 4 . 1 . . . . Core 1 | . . . . . . . . . 2 3 7 6 4 5 5 5 5 4 . . . . . Reactor 1 | . . . . . . . . . . . . . . . . . . 4 4 . 4 12 10 Treads 17 | . 24 14 28 33 27 27 15 9 8 7 7 13 17 20 20 17 17 14 3 . 9 12 10 Wheel 3 | . 3 14 4 . . . 8 15 10 7 7 5 . . . . . . . . . . . Device 7 | . . . 3 . . 1 5 7 1 7 7 13 15 13 5 5 5 15 9 5 16 22 22 Storage 7 | . 14 14 11 11 9 9 7 7 7 7 7 6 5 5 5 5 5 5 4 . 2 4 3 Processor 10 | . . . 10 10 16 18 15 15 18 7 7 5 5 10 3 5 5 1 . . 1 6 12 Protection 9 | . 11 . 6 11 14 15 7 7 8 7 7 10 11 7 14 14 11 10 3 . 3 7 1 Energy Cannon 1 | . . . . . . . . . . 7 7 5 9 3 . . . . . . . 3 3 Ballistic Gun 12 | . 24 . 15 21 17 13 22 23 19 7 7 7 5 10 10 11 11 10 7 . . . . Ballistic Cannon 2 | . 3 28 6 . . . . . . 7 7 4 . . 3 5 5 2 . . 2 . . Peak Build Rating 191 | 7 10 10 22 21 30 33 39 49 63 58 58 75 88 89 115 122 122 143 87 22 145 182 191 Average Rating 60 | 5 8 9 18 20 26 28 36 45 52 56 58 59 81 82 93 120 121 131 68 19 94 164 155 On Entrance 57 | . 7 9 10 21 19 30 30 39 49 56 58 58 65 85 65 115 122 122 58 22 19 145 182 Avg Prop Armor Cover (%) 11 | . 9 11 17 . . . 12 12 11 8 8 8 . 4 3 . . . . . 8 . 43 Naked Turns . | . . . . . . . . . . . . . . . . . . . . . . . . Heaviest Build 194 | 14 92 91 96 97 108 108 103 100 127 127 125 166 173 166 157 157 150 162 93 7 170 193 194 Greatest Support 240 | 40 40 16 60 60 60 60 60 31 140 28 28 140 160 163 190 190 190 230 80 3 225 240 240 Greatest Overweight (x) 8 | . 5 5 5 2 1 1 8 3 8 4 4 5 1 1 1 . 4 1 2 2 1 1 3 Average Overweight (x) 1 | . 2 5 2 1 1 1 3 3 3 4 4 4 . . . . . . . . . . . Largest Inventory Capacity 25 | 8 25 25 25 25 25 25 25 25 25 25 25 25 25 25 25 25 25 25 25 5 25 25 25 Average Capacity 24 | 7 22 25 25 25 25 25 25 25 25 25 25 25 25 25 25 25 25 25 17 5 17 25 21 Most Carried 25 | 4 25 25 25 25 25 25 25 25 25 23 23 25 25 25 25 25 25 25 18 5 25 25 25 Average Carried 22 | 2 14 23 23 24 24 23 24 24 24 19 23 24 21 24 24 25 25 22 13 5 12 24 20 Final Capacity 25 | 8 25 25 25 25 25 25 25 25 25 25 25 25 25 25 25 25 25 25 5 5 25 25 5 Final Carried 25 | 4 21 25 24 22 25 23 25 25 18 23 23 19 25 25 25 25 25 20 5 5 25 25 . Class Distribution -------------------- 23% | Scavenger-Mutant 21% | Mutant 17% | Scavenger-Tank 17% | Tank 8% | Gunner 7% | Commander-Tank Dominant Class ---------------- Mutant | -10/Materials Mutant | -10/Mines Scavenger-Mutant | -9/Materials Scavenger-Mutant | -9/Mines Scavenger-Mutant | -8/Materials Scavenger-Mutant | -8/Storage Commander-Gunner | -7/Factory Commander-Tank | -7/Waste Gunner | -7/Factory Tank | -7/Lower Caves Tank | -7/Lower Caves Scavenger-Tank | -6/Factory Tank | -5/Factory Commander-Tank | -5/Extension Scavenger-Tank | -5/Cetus Scavenger-Tank | -5/Archives Scavenger-Tank | -5/Hub_04(d) Scavenger-Tank | -4/Factory Scavenger-Mutant | -4/Upper Caves Mutant | -4/Upper Caves Scavenger-Tank | -3/Research Scavenger-Tank | -2/Research Scavenger-Tank | -1/Access Resources | -11 -10 -10 -9 -9 -8 -8 -7 -7 -7 -7 -7 -6 -5 -5 -5 -5 -5 -4 -4 -4 -3 -2 -1 ----------- Run | Yrd Mat Min Mat Min Mat Sto Fac Was Fac Low Low Fac Fac Ext Cet Arc Hub Fac Upp Upp Res Res Acc Matter Collected 15685 | 274 439 340 702 252 285 1235 153 264 4213 220 . 1034 532 1269 467 76 322 918 267 58 383 694 1288 Remotely 1623 | . . . . . . . . . 1038 . . . 184 . . . . 260 141 . . . . Salvage Created 20669 | 39 495 31 878 229 321 1783 131 193 6403 268 . 1135 1034 1195 71 76 337 907 165 50 593 1382 2953 Parts 886 | 4 26 5 54 15 27 79 7 2 289 7 . 64 43 55 3 4 12 34 3 2 6 45 100 Haulers Intercepted 25 | . 2 . 5 . 4 5 . . 5 . . . . . . . . . . . 2 . 2 Recyclers Shooed 10 | 1 . 1 1 . . 1 . . 2 . . 2 . . . . . 1 . . . . 1 Parts Field Recycled 4 | . . . . . . . . . . . . . 4 . . . . . . . . . . Retrieved Matter 25 | . . . . . . . . . . . . . 25 . . . . . . . . . . Parts Self-Destructed 12 | . . . . . . . . . . 7 . . . . . . . . 3 2 . . . Prevented 2 | . . . . . . . . . . 2 . . . . . . . . . . . . . Parts Restored . | . . . . . . . . . . . . . . . . . . . . . . . . Kills | -11 -10 -10 -9 -9 -8 -8 -7 -7 -7 -7 -7 -6 -5 -5 -5 -5 -5 -4 -4 -4 -3 -2 -1 ------- Run | Yrd Mat Min Mat Min Mat Sto Fac Was Fac Low Low Fac Fac Ext Cet Arc Hub Fac Upp Upp Res Res Acc Combat Hostiles Destroyed 375 | . 11 . 18 15 6 32 3 1 122 5 . 22 19 18 1 . 6 16 4 4 6 22 44 Melee 2 | . . . . . . . . . . . . . . . . . . . . . . . 2 Guns 186 | . 9 . 8 13 6 24 3 1 56 2 . 5 5 9 1 . 3 13 2 . . 10 16 Cannons 70 | . 2 . 7 . . . . . 9 3 . 12 9 8 . . 3 3 . . . 5 9 AOE 88 | . . . 3 2 . 7 . . 44 . . 4 5 . . . . . 2 4 . 5 12 Classes Destroyed 24 | 1 5 . 4 2 . 3 1 1 3 . . 1 . 1 . . . . 1 1 . . . Worker 22 | . 1 . . . . 2 . . 11 . . 2 4 . . . 1 . . . . . 1 Builder 11 | . . . . . . 3 . . 3 . . 1 . 1 . . . . . . . 1 2 Tunneler 6 | 2 . 2 . 2 . . . . . . . . . . . . . . . . . . . Hauler 25 | . 2 . 5 . 4 5 . . 5 . . . . . . . . . . . 2 . 2 Recycler 9 | . 1 . . . . 1 . . 3 . . 2 . . . . . . . . . . 2 Minesweeper 1 | . . . . . . . . . . . . . . . . . . . . 1 . . . Mechanic 9 | . . . . . . . . . 7 . . . 1 . . . . . . . . . 1 Operator 6 | . . . 1 . . 1 . . 1 . . 1 . 1 . . . . . . 1 . . Watcher 7 | . . . 1 . . . . . 1 . . 1 . 2 . . . . . . . . 2 Swarmer 38 | . 5 . 4 5 4 . 1 . 5 . . . 1 4 . . . . . 4 . 5 . Saboteur 3 | . . . . . . . . . . . . 1 1 . . . . . . . . . 1 Grunt 172 | . 6 . 8 . 1 19 . . 81 2 . 9 8 2 . . 3 7 3 . 4 3 16 Brawler 18 | . . . 1 . . 2 . . 8 . . 1 1 . . . 1 1 . . . 1 2 Duelist 17 | . . . . . . 2 . . 8 2 . 1 1 . . . . 1 1 . . 1 . Protector 9 | . . . . . . . . . 7 . . 1 . . . . . 1 . . . . . Sentry 46 | . . . 5 1 1 8 1 . 6 1 . 4 1 10 . . . 3 . . . 2 3 Demolisher 1 | . . . . 1 . . . . . . . . . . . . . . . . . . . Specialist 4 | . . . . . . . . . 2 . . . . . . . . . . . . . 2 Hunter 21 | . . . . . . 1 . . 2 . . 1 2 . . . . . . . 2 3 10 Programmer 32 | . . . . . . . 1 . 4 . . 4 4 . . . . 3 . . . 6 10 Behemoth 2 | . . . . . . . . . . . . . . 2 . . . . . . . . . Compactor 1 | . . . . . . . . 1 . . . . . . . . . . . . . . . Cetus Guard 1 | . . . . . . . . . . . . . . . 1 . . . . . . . . Lightning 2 | . . . . . . . . . . . . . . . . . 2 . . . . . . Decomposer 1 | . . . . . . . . . . 1 . . . . . . . . . . . . . Samaritan 1 | . . . . . . . . . . . . . . . . . . . 1 . . . . Assembled 8 | . . . . 8 . . . . . . . . . . . . . . . . . . . Best Kill Streak 17 | 2 3 1 5 5 2 6 1 1 17 5 . 9 8 3 1 . 3 6 4 4 3 5 10 Combat Bots Only 17 | . 3 . 5 5 2 5 1 1 17 5 . 9 5 2 1 . 2 6 4 4 3 4 7 Max Kills in Single Turn 6 | 1 2 1 2 3 1 2 1 1 6 1 . 4 3 1 1 . 1 2 2 3 1 3 4 Gunslinging 1 | . 1 . 1 . . . . . . . . . . . . . . 1 1 . . . 1 Exploded 5 | . . . 2 2 . 2 . . 5 . . 2 1 . . . . . 2 3 . 3 2 Melee 1 | . . . . . . . . . . . . . . . . . . . . . . . 1 Uniques/NPCs Destroyed 1 | . . . . . . . . . . . . . . . . . . . . . . 1 . 6S-H0T (-2/Research) Combat | -11 -10 -10 -9 -9 -8 -8 -7 -7 -7 -7 -7 -6 -5 -5 -5 -5 -5 -4 -4 -4 -3 -2 -1 -------- Run | Yrd Mat Min Mat Min Mat Sto Fac Was Fac Low Low Fac Fac Ext Cet Arc Hub Fac Upp Upp Res Res Acc Hostile Shots Fired 2556 | . 56 . 50 58 30 159 17 . 423 62 . 298 109 141 19 . 20 284 40 2 71 137 580 Missed 687 | . 12 . 17 6 7 42 5 . 136 13 . 100 32 22 7 . 6 71 14 1 18 29 149 Hits 1869 | . 44 . 33 52 23 117 12 . 287 49 . 198 77 119 12 . 14 213 26 1 53 108 431 Melee 78 | . . . . 6 . 11 . . 19 8 . 8 4 . . . . 4 4 . . 1 13 Projectile 1791 | . 44 . 33 46 23 106 12 . 268 41 . 190 73 119 12 . 14 209 22 1 53 107 418 AOE 7 | . 1 . . 1 . . . . . . . . . . . . . 5 . . . . . Critical Strikes 133 | . 1 . 3 2 . 5 . . 19 4 . 13 6 16 3 . 2 24 2 . 1 15 17 Part Disruptions 9 | . . 1 . 3 . . . . 1 . . . . . . . 2 . . . . . 2 Damage Taken 32690 | . 451 11 448 695 261 1993 165 . 5228 699 . 2349 1006 2023 298 . 524 4743 676 15 943 1574 8588 Core 3694 | . 82 . 55 41 13 173 6 . 449 25 . 135 33 146 26 . 26 218 88 15 504 40 1619 Absorbed by Shields 3225 | . . . . . . 19 . . . . . 427 371 429 64 . . . . . . 475 1440 Reduced by Siege Mode 304 | . . . . . . . . . . . . 46 15 42 . . . 36 . . . 24 141 Redirected to Shielding 11 | . . . . . . . . . 11 . . . . . . . . . . . . . . Ignored by Resistances 2313 | . . . . . 14 42 . . 21 . . 172 149 151 . . 95 . . . . 458 1211 Regen/Repaired (Parts) 1846 | . 35 . 45 . . 172 139 . 184 . . . 758 . 90 27 56 340 . . . . . Core Remaining (%) 73 | 100 . 67 . 76 . 66 . . . . 31 84 . . . . 76 . . 72 61 97 . Volleys Fired 1143 | 3 57 6 56 41 23 121 8 25 313 16 . 63 68 60 14 8 16 44 13 2 10 71 105 Largest 3 | 2 2 2 2 2 2 2 3 3 3 3 . 3 3 3 3 2 3 3 2 1 3 3 3 Hottest 301 | 40 60 60 60 46 48 80 71 71 135 92 . 203 203 225 240 66 117 119 68 39 235 301 253 Shots Fired 2537 | 6 114 12 109 79 46 225 24 74 659 47 . 157 146 168 40 16 48 122 22 2 24 170 227 Gun 1681 | 6 84 . 70 77 46 209 24 74 461 15 . 57 38 108 27 15 33 105 18 . 14 101 99 Cannon 660 | . 30 12 37 . . . . . 79 32 . 98 85 60 13 1 15 12 . . 10 65 111 Launcher 118 | . . . 2 2 . 9 . . 65 . . 2 6 . . . . 5 4 2 . 4 17 Special 78 | . . . . . . 7 . . 54 . . . 17 . . . . . . . . . . Kinetic 1718 | 6 114 12 107 77 46 209 24 74 492 32 . 89 38 124 39 16 48 117 18 . 10 7 19 Thermal 675 | . . . . . . 7 . . 102 15 . 66 102 44 1 . . . . . 14 159 165 Explosive 80 | . . . 2 2 . 9 . . 27 . . 2 6 . . . . 5 4 2 . 4 17 Electromagnetic 64 | . . . . . . . . . 38 . . . . . . . . . . . . . 26 Robot Hit Streak 49 | 3 7 4 27 8 11 36 16 49 37 9 . 17 17 45 7 10 9 30 7 . 10 35 27 Robot Miss Streak 4 | 1 4 1 2 2 2 1 1 1 4 3 . 3 4 3 4 1 2 3 2 . 1 3 3 Penetration Max 1 | . . . . . . . . . . . . . . 1 1 . 1 1 1 . . . . Secondary Targets 24 | . 2 . 1 1 . 4 1 . 7 . . . . . . . . 5 1 . . . 2 Max Gunslinging Chain 2 | . 1 . 1 1 . 1 1 . 1 . . . . . . . . 2 1 . . . 1 Shots Hit Robots 1883 | 3 66 6 80 52 24 194 20 70 467 31 . 111 99 160 32 14 25 85 16 1 35 123 169 Core Hits 1041 | 2 21 2 33 26 13 97 5 13 362 10 . 54 52 54 9 5 19 50 17 6 5 50 136 Critical Kills 28 | 1 . . . . 1 4 . . 2 . . 1 . 2 . 2 3 6 3 . . 1 2 Critical Parts Destroyed 33 | . . . 1 . 1 3 . . 1 . . . . 11 3 . 2 5 . 1 5 . . Critical Strikes 98 | 1 . . 1 . 2 10 . 1 13 . . 1 2 19 6 2 5 12 3 1 5 3 11 Burn 15 | . . . . . . 3 . . 10 . . . 2 . . . . . . . . . . Meltdown 6 | . . . . . . . . . 1 . . 1 . 1 . . . . . . . 1 2 Destroy 58 | 1 . . 1 . 2 7 . 1 2 . . . . 17 5 2 5 12 3 . . . . Blast 9 | . . . . . . . . . . . . . . . . . . . . . . 2 7 Smash 7 | . . . . . . . . . . . . . . 1 . . . . . 1 5 . . Sever 1 | . . . . . . . . . . . . . . . 1 . . . . . . . . Impale 2 | . . . . . . . . . . . . . . . . . . . . . . . 2 Melee Attacks 129 | . . . 1 . 1 30 . . 2 . . . 4 32 5 . . 4 1 6 21 1 21 Impact 31 | . . . . . . . . . 1 . . . . 1 . . . 4 . 6 19 . . Slashing 38 | . . . 1 . 1 30 . . . . . . . 1 5 . . . . . . . . Piercing 21 | . . . . . . . . . . . . . . . . . . . . . . . 21 Sneak Attacks 47 | . . . . . . 2 . . 1 . . . 4 30 5 . . . 1 1 3 . . Combat Hostiles . | . . . . . . . . . . . . . . . . . . . . . . . . Follow-up Attacks . | . . . . . . . . . . . . . . . . . . . . . . . . Damage Inflicted 64491 | 36 1016 113 1542 1091 474 4048 347 1124 17311 760 . 4472 3444 3962 1058 258 954 3515 695 448 1278 5323 11222 Guns 26413 | 36 714 . 901 830 453 2754 347 1124 5758 176 . 678 369 2159 580 258 658 2202 309 . 361 2701 3045 Cannons 13863 | . 298 113 380 . . . . . 1395 584 . 2074 2025 1586 182 . 147 146 . . 246 1696 2991 Explosions 21285 | . . . 255 257 . 970 . . 9628 . . 1720 909 . . . 129 1159 386 352 . 926 4594 Melee 1925 | . . . . . . 161 . . . . . . . 138 296 . . . . 96 671 . 563 Ramming 280 | . 4 . 6 4 21 106 . . 3 . . . . 79 . . 20 8 . . . . 29 Kinetic 24689 | 36 1012 113 1281 830 453 2754 347 1124 6271 435 . 1247 369 2611 762 258 805 2348 309 . 246 282 796 Thermal 17406 | . . . . . . 57 . . 2733 325 . 2026 2166 1134 . . . 72 . . 361 4115 4417 Explosive 16202 | . . . 255 257 . 970 . . 5289 . . 1177 909 . . . . 1087 386 352 . 926 4594 Electromagnetic 3989 | . . . . . . . . . 3015 . . 22 . . . . 129 . . . . . 823 Impact 800 | . . . . . . . . . . . . . . 33 . . . . . 96 671 . . Slashing 562 | . . . . . . 161 . . . . . . . 105 296 . . . . . . . . Piercing 563 | . . . . . . . . . . . . . . . . . . . . . . . 563 Highest Corruption 27 | . 1 2 . 5 . . . 12 27 27 27 . 1 1 14 14 18 4 4 4 . 2 16 Average Corruption 7 | . 1 1 . 5 . . . 8 12 27 27 . 1 1 5 14 14 2 4 4 . 1 4 Corruption Purged 5 | . . . . . . . . . 5 . . . . . . . . . . . . . . Corruption Blocked . | . . . . . . . . . . . . . . . . . . . . . . . . Effects 421 | . 9 9 . 3 . . . 7 247 34 5 . 1 18 10 5 13 7 5 5 . 13 30 Message Errors 99 | . 3 3 . 1 . . . 1 65 4 1 . . 3 2 1 4 . 3 1 . 3 4 Matter Fused 85 | . 1 3 . 1 . . . . 45 9 1 . 1 6 2 . 3 3 2 . . 4 4 Heat Flow Errors 49 | . 3 . . . . . . . 24 7 . . . 3 2 1 1 2 . . . 1 5 Energy Discharges 53 | . 1 3 . . . . . 1 30 2 1 . . 2 3 1 1 . . 3 . 2 3 Parts Rejected 5 | . . . . . . . . . 3 . . . . . . . . . . . . . 2 Parts Fused 4 | . . . . . . . . . 2 1 . . . . . . . . . . . 1 . Data Loss (minor) 52 | . . . . . . . . 4 32 4 1 . . 3 1 . 1 1 . . . . 5 Data Loss (major) 15 | . 1 . . . . . . . 10 2 1 . . . . . . . . 1 . . . Misfires 19 | . . . . 1 . . . . 9 2 . . . 1 . 1 1 1 . . . . 3 Alerts 2 | . . . . . . . . . 1 . . . . . . . . . . . . 1 . Misdirections 5 | . . . . . . . . . 3 . . . . . . . 1 . . . . . 1 Weapon Failures 33 | . . . . . . . . 1 23 3 . . . . . 1 1 . . . . 1 3 Overload Shots 5 | . . . . . . . . . 1 . . . . 3 1 . . . . . . . . Overflow Damage 1512 | . 2 . 69 34 . 33 . . 339 68 . 58 84 7 . . . 37 . 102 336 63 280 Projectiles 304 | . 2 . . . . . . . . 68 . 1 84 . . . . . . . . . 149 Explosions 700 | . . . 69 34 . 33 . . 339 . . 57 . . . . . 37 . 6 . 63 62 Melee 508 | . . . . . . . . . . . . . . 7 . . . . . 96 336 . 69 Knockbacks 29 | . 2 1 . . . . . . 4 2 . 8 . 1 . . 3 2 . 1 4 . 1 Impact 7 | . . . . . . . . . . . . . . 1 . . 1 . . 1 4 . . Kinetic 21 | . 2 1 . . . . . . 4 2 . 7 . . . . 2 2 . . . . 1 Secondary 1 | . . . . . . . . . . . . 1 . . . . . . . . . . . Self-Inflicted Damage 1486 | . . . . 4 . 48 . . 591 . . 90 . . . . 78 112 43 . . . 520 Shots 39 | . . . . 1 . 1 . . 22 . . 2 . . . . 1 3 1 . . . 8 Rammed 31 | . 3 . 1 4 4 10 . . 1 . . . . 3 . . 1 2 . . . . 2 Targets Rammed 33 | . 3 . 1 5 4 10 . . 1 . . . . 3 . . 1 2 . . . . 3 Kicked . | . . . . . . . . . . . . . . . . . . . . . . . . Crushed 2 | . . . . 1 . . . . . . . . . . . . . . . . . . 1 Highest Temperature 444 | . 262 . 24 76 13 112 34 92 444 290 . 221 318 290 197 212 194 205 . . 66 159 199 Average Temperature 66 | . 79 . 9 28 3 26 16 32 61 138 . 56 106 86 110 73 87 52 . . 29 52 49 Received Heat Transfer 6388 | . 114 . 210 245 54 798 15 . 1881 189 . 541 135 469 9 . 21 804 135 . 69 96 603 Effects 4 | . 1 . . . . . . . 2 . . . . . . . . 1 . . . . . Shutdowns 1 | . . . . . . . . . 1 . . . . . . . . . . . . . . Energy Bleed 3 | . 1 . . . . . . . 1 . . . . . . . . 1 . . . . . Siege Activations 12 | . . . . . . . . . 1 . . 1 1 2 . . . 1 . . . 2 4 Total Turns 526 | . . . . . . . . . 83 . . 164 31 78 . . . 17 . . . 30 123 Longest Duration 164 | . . . . . . . . . 83 . . 164 31 67 . . . 17 . . . 21 39 Martial Activations . | . . . . . . . . . . . . . . . . . . . . . . . . Shielding Activations . | . . . . . . . . . . . . . . . . . . . . . . . . Robots Disrupted 3 | . . . . . . . . . 1 . . . 2 . . . . . . . . . . Combat Hostiles 2 | . . . . . . . . . 1 . . . 1 . . . . . . . . . . Robots Corrupted 21 | . . . . . . . . . 10 . . . . 1 . . . . . 1 7 . 2 Combat Hostiles 18 | . . . . . . . . . 10 . . . . . . . . . . . 6 . 2 Parts Fried 52 | . . . . . . . . . 28 . . . . 1 . . . . . 1 12 . 10 Impact Corruptions 16 | . . . . . . . . . . . . . . 2 . . . . . 3 11 . . Robots Melted 13 | . . . . . . 1 . . 5 . . 1 . 1 . . . . . . . 2 3 Combat Hostiles 11 | . . . . . . 1 . . 3 . . 1 . 1 . . . . . . . 2 3 Parts Melted 54 | . . . . . . 4 . 1 9 1 . 1 7 1 . . . 1 . . . 10 19 Heat Transferred 24374 | . . . . . . 880 . . 7470 444 . 1675 3617 1529 . . . 12 . . 453 3965 4329 Parts Sabotaged 2 | . . . . . . . . . . . . . . . . . . 2 . . . . . Parts Stolen . | . . . . . . . . . . . . . . . . . . . . . . . . Parts Stripped . | . . . . . . . . . . . . . . . . . . . . . . . . Power Chain Reactions 8 | . . . . . . . . . 8 . . . . . . . . . . . . . . Alert | -11 -10 -10 -9 -9 -8 -8 -7 -7 -7 -7 -7 -6 -5 -5 -5 -5 -5 -4 -4 -4 -3 -2 -1 ------- Run | Yrd Mat Min Mat Min Mat Sto Fac Was Fac Low Low Fac Fac Ext Cet Arc Hub Fac Upp Upp Res Res Acc Maximum Alert Level 5 | . . . 1 . 1 3 1 . 5 . . 4 3 2 1 . 4 3 . . 1 2 4 Low Security (%) 30 | 100 100 100 98 100 66 2 16 100 1 . . . . 5 . 100 39 . . . 64 52 . Level 1 14 | . . . 1 . 33 13 83 . 4 . . . . 54 100 . 17 . . . 35 4 12 Level 2 25 | . . . . . . 64 . . 16 . . . 88 40 . . 20 85 . . . 43 24 Level 3 16 | . . . . . . 20 . . 19 . . 95 11 . . . 10 14 . . . . 39 Level 4 3 | . . . . . . . . . 9 . . 4 . . . . 12 . . . . . 22 Level 5 8 | . . . . . . . . . 42 . . . . . . . . . . . . . . High Security 1 | . . . . . . . . . 8 . . . . . . . . . . . . . . Max Security . | . . . . . . . . . . . . . . . . . . . . . . . . Sterilizations 1 | . . . . . . . . . 1 . . . . . . . . . . . . . . Peak Influence 3872 | 10 84 6 210 186 239 802 326 92 3872 . . 1136 733 517 381 165 1127 764 . . 324 658 1388 Initial 1116 | . . 6 . 36 31 79 299 92 . . . 1116 480 345 252 120 46 539 . . 216 . 384 Average 640 | . 15 . 116 48 143 567 248 43 1694 . . 904 577 356 313 145 427 578 . . 131 255 837 Influence Increases 17619 | 10 311 10 670 283 544 1740 255 . 5232 100 . 853 683 857 371 65 1426 741 90 215 306 967 1890 Destroy 0b10 Robot/C 8780 | . 220 . 400 200 360 860 100 . 2700 100 . 420 420 440 160 . 440 380 80 80 120 420 880 Destroy 0b10 Robot/NC 600 | 10 20 10 35 10 30 75 . . 205 . . 40 25 25 10 10 15 5 . 5 15 5 50 Destroy Leader 1788 | . 54 . 102 20 80 252 30 . 522 . . 122 90 44 . . 60 80 10 10 24 90 198 Allied During Kill 1604 | . . . 14 22 43 113 107 . 454 . . . 8 144 170 10 470 49 . . . . . Trap Triggered on 0b10 170 | . . . 20 10 . 50 . . 60 . . 20 . . . . . . . . 10 . . Successful Hack 396 | . 16 . 44 . . 21 3 . 86 . . 26 . 78 . . . 22 . . 52 . 48 Select Force Hacks 50 | . . . . . . . . . . . . . . . . . 50 . . . . . . Disable Machine 1050 | . . . 45 . 15 105 . . 240 . . 150 60 45 15 45 135 90 . . . 15 90 Anti-Garrison Action 950 | . . . . . . 200 . . 550 . . . . . . . . . . . . 200 . Destroy Structure 1511 | . 1 . 10 21 1 64 . . 235 . . 45 80 36 16 . 226 100 . . 10 222 444 Partial Spotted 15 | . . . . . . . . . . . . . . . . . . . . . 15 . . Lose Combat Pursuer 705 | . . . . . 15 . 15 . 180 . . 30 . 45 . . 30 15 . 120 60 15 180 Influence Decreases 16231 | 10 295 26 576 295 436 1271 650 264 1360 1745 454 1645 959 1112 520 231 459 1201 438 187 628 325 1144 Entered New Map 5827 | . . 10 . 58 51 111 360 172 . 1433 424 657 501 360 198 181 89 563 238 57 106 . 258 Time Decay 7784 | 10 285 16 526 207 385 770 270 92 770 302 30 628 398 642 222 50 120 458 160 130 452 305 556 Lost Part 1100 | . 10 . 30 30 . 70 20 . 180 10 . 60 10 70 . . 10 140 40 . 70 20 330 Lost Ally 770 | . . . 20 . . 20 . . 260 . . . 50 40 100 . 240 40 . . . . . Purge Threat 750 | . . . . . . 300 . . 150 . . 300 . . . . . . . . . . . Squads Dispatched 120 | . 3 1 1 . 1 11 1 . 47 . . 11 8 1 . . 4 7 . 1 4 8 11 Investigation 31 | . 2 . 1 . . 2 . . 12 . . 3 2 . . . 3 2 . . 3 1 . Extermination 20 | . . . . . . . 1 . 7 . . 4 2 . . . . 1 . . . 2 3 Reinforcement 22 | . 1 . . . 1 3 . . 5 . . 1 2 1 . . 1 1 . . 1 2 3 Assault 34 | . . 1 . . . 1 . . 21 . . 3 1 . . . . 3 . 1 . 1 2 Garrison 13 | . . . . . . 5 . . 2 . . . 1 . . . . . . . . 2 3 Intercept . | . . . . . . . . . . . . . . . . . . . . . . . . Searches Triggered . | . . . . . . . . . . . . . . . . . . . . . . . . Unchained Authorized 3 | . . . . . . . . . . . . 1 . . . . 1 . . . . 1 . Construction Impeded 5 | . . . . . . 1 . . 1 . . . 2 1 . . . . . . . . . Haulers Reinforced 3 | . . . . . . . . . 2 . . . . . . . . . . . . . 1 Active Scanning Responses . | . . . . . . . . . . . . . . . . . . . . . . . . Cargo Convoy Interrupts . | . . . . . . . . . . . . . . . . . . . . . . . . Stealth | -11 -10 -10 -9 -9 -8 -8 -7 -7 -7 -7 -7 -6 -5 -5 -5 -5 -5 -4 -4 -4 -3 -2 -1 --------- Run | Yrd Mat Min Mat Min Mat Sto Fac Was Fac Low Low Fac Fac Ext Cet Arc Hub Fac Upp Upp Res Res Acc Distress Signals 36 | . 5 . 1 . 2 4 . . 10 . . . 2 2 3 . 1 2 . . 3 . 1 Communications Jammed 100 | . . . . . . . . . . . . . . . . . . 59 . . . . 41 Distress Signals 99 | . . . . . . . . . . . . . . . . . . 59 . . . . 40 Times Spotted 699 | . 27 . 28 23 15 64 7 6 230 5 . 29 34 30 10 . 26 40 5 4 15 27 74 Peak Tracking Total 16 | . 4 . 4 4 5 5 3 2 16 5 . 5 6 6 5 . 7 11 4 9 5 4 9 Tactical Retreats 30 | . . . . 2 1 . 1 . 11 . . 1 . 1 . . 2 1 . 2 2 1 5 Traps | -11 -10 -10 -9 -9 -8 -8 -7 -7 -7 -7 -7 -6 -5 -5 -5 -5 -5 -4 -4 -4 -3 -2 -1 ------- Run | Yrd Mat Min Mat Min Mat Sto Fac Was Fac Low Low Fac Fac Ext Cet Arc Hub Fac Upp Upp Res Res Acc Traps Triggered 30 | . 2 . . . . 7 1 . 7 . . 3 1 4 . . 1 . . . 1 . 3 Indirectly 4 | . . . . . . . . . 2 . . 2 . . . . . . . . . . . Trap Hack Attempts 341 | . . . 16 . . 40 . . 95 . . 76 . 56 . . . . . . 58 . . Triggered . | . . . . . . . . . . . . . . . . . . . . . . . . Disarmed 3 | . . . . . . . . . 2 . . . . 1 . . . . . . . . . Reprogrammed 33 | . . . 4 . . 6 . . 8 . . 8 . 2 . . . . . . 5 . . Reused 23 | . . . 2 1 . 5 . . 6 . . 2 . . . . . 1 . 1 1 4 . Traps Extracted 14 | . . . . . . . . . 3 . . . . 2 . . . 1 . . 4 4 . Installed 18 | . . 1 2 1 . . . . 3 . . . . . . . . 2 . 1 . 8 . Triggered 18 | . . . 2 1 . 5 . . 6 . . 2 . . . . . . . 1 1 . . Most Traps Carried 5 | . . 4 3 1 . . . . 3 . . . . 2 2 2 2 2 1 1 5 5 1 Machines | -11 -10 -10 -9 -9 -8 -8 -7 -7 -7 -7 -7 -6 -5 -5 -5 -5 -5 -4 -4 -4 -3 -2 -1 ---------- Run | Yrd Mat Min Mat Min Mat Sto Fac Was Fac Low Low Fac Fac Ext Cet Arc Hub Fac Upp Upp Res Res Acc Machines Disabled 72 | . . . 3 . 1 7 . . 17 . . 10 4 4 1 3 9 6 . . . 1 6 Max in Single Turn 8 | . . . 1 . 1 1 . . 5 . . 3 1 1 1 1 8 2 . . . 1 1 Garrison Access 5 | . . . . . . 1 . . 3 . . . . . . . . . . . . 1 . Network Hub 2 | . . . . . . . . . . . . . . . . . 2 . . . . . . Machines Repaired . | . . . . . . . . . . . . . . . . . . . . . . . . Machines Dismantled 1 | . . . . . . 1 . . . . . . . . . . . . . . . . . Machines Sabotaged 1 | . . . . . . . . . . . . . . . . . 1 . . . . . . Overloaded Fab Kills . | . . . . . . . . . . . . . . . . . . . . . . . . Hacking | -11 -10 -10 -9 -9 -8 -8 -7 -7 -7 -7 -7 -6 -5 -5 -5 -5 -5 -4 -4 -4 -3 -2 -1 --------- Run | Yrd Mat Min Mat Min Mat Sto Fac Was Fac Low Low Fac Fac Ext Cet Arc Hub Fac Upp Upp Res Res Acc Machines Accessed 101 | . 8 . 9 . 4 13 2 . 23 1 . 8 2 10 . . 3 3 . . 5 3 7 Terminals 51 | . 7 . 6 . 3 8 . . 8 . . 2 . 9 . . 3 . . . 1 . 4 Fabricators 11 | . . . . . . . . . 4 . . 1 1 . . . . 2 . . 1 1 1 Repair Stations 13 | . 1 . 1 . . 2 1 . 3 . . 1 1 . . . . 1 . . 2 . . Recycling Units 8 | . . . . . . 2 1 . 2 . . 1 . 1 . . . . . . . 1 . Scanalyzers 10 | . . . 2 . 1 . . . 3 . . 2 . . . . . . . . 1 . 1 Garrison Access 7 | . . . . . . 1 . . 3 . . 1 . . . . . . . . . 1 1 Total Hacks 250 | . 17 . 25 . 8 37 7 . 54 1 . 23 5 17 . . 11 9 . . 14 5 17 Successful 107 | . 8 . 13 . 1 17 4 . 23 1 . 11 1 11 . . 2 7 . . 3 3 2 Failed 142 | . 9 . 11 . 7 20 3 . 31 . . 12 4 6 . . 9 2 . . 11 2 15 Catastrophic 35 | . 1 . 1 . 2 2 1 . 9 . . 4 1 1 . . 4 . . . 1 1 7 Database Lockouts 1 | . . . 1 . . . . . . . . . . . . . . . . . . . . Manual 74 | . 6 . 10 . 6 14 . . 10 . . 1 2 5 1 . 10 3 . . 2 1 3 Terminals 111 | . 14 . 19 . 6 23 . . 11 . . 3 . 15 . . 11 . . . 2 . 7 Fabricators 37 | . . . . . . . . . 15 . . 5 3 . . . . 8 . . 3 2 1 Repair Stations 38 | . 3 . 2 . . 7 6 . 8 . . 3 2 . . . . 1 . . 6 . . Recycling Units 16 | . . . . . . 5 1 . 4 . . 2 . 2 . . . . . . . 2 . Scanalyzers 35 | . . . 4 . 2 . . . 11 . . 7 . . . . . . . . 3 . 8 Garrison Access 12 | . . . . . . 2 . . 5 . . 3 . . . . . . . . . 1 1 Terminal Hacks 33 | . 7 . 6 . . 6 . . 2 1 . 2 . 8 . . 1 . . . . . . Record 1 | . . . . . . . . . . 1 . . . . . . . . . . . . . Robot Analysis 2 | . 2 . . . . . . . . . . . . . . . . . . . . . . Prototype ID Bank 3 | . 2 . . . . 1 . . . . . . . . . . . . . . . . . Open Door 9 | . . . . . . 2 . . . . . . . 7 . . . . . . . . . Branch Access Points 1 | . . . 1 . . . . . . . . . . . . . . . . . . . . Terminal Index 1 | . . . 1 . . . . . . . . . . . . . . . . . . . . Unreport Threat 5 | . . . . . . 2 . . 1 . . 2 . . . . . . . . . . . Locate Traps 6 | . 1 . 2 . . 1 . . 1 . . . . 1 . . . . . . . . . Hauler Manifests 1 | . 1 . . . . . . . . . . . . . . . . . . . . . . Zone Layout 4 | . 1 . 2 . . . . . . . . . . . . . 1 . . . . . . Fabricator Hacks 15 | . . . . . . . . . 8 . . 2 . . . . . 4 . . . 1 . Network Status 3 | . . . . . . . . . 1 . . . . . . . . 1 . . . 1 . Load Schematic 5 | . . . . . . . . . 3 . . 1 . . . . . 1 . . . . . Build 7 | . . . . . . . . . 4 . . 1 . . . . . 2 . . . . . Repair Station Hacks 15 | . . . 2 . . 5 4 . 2 . . 1 . . . . . . . . 1 . . Scan Component 9 | . . . 1 . . 3 2 . 2 . . 1 . . . . . . . . . . . Repair 5 | . . . 1 . . 2 2 . . . . . . . . . . . . . . . . Refit 1 | . . . . . . . . . . . . . . . . . . . . . 1 . . Recycling Unit Hacks 3 | . . . . . . . . . 1 . . 1 . . . . . . . . . 1 . Process 1 | . . . . . . . . . 1 . . . . . . . . . . . . . . Retrieve Components 2 | . . . . . . . . . . . . 1 . . . . . . . . . 1 . Scanalyzer 18 | . . . 4 . 1 . . . 6 . . 5 . . . . . . . . 1 . 1 Insert Component 3 | . . . 1 . . . . . 2 . . . . . . . . . . . . . . Analyze 2 | . . . 1 . . . . . 1 . . . . . . . . . . . . . . Retrieve Study 13 | . . . 2 . 1 . . . 3 . . 5 . . . . . . . . 1 . 1 Garrison Access Hacks . | . . . . . . . . . . . . . . . . . . . . . . . . Unauthorized Hacks 23 | . 1 . 1 . . 6 . . 4 . . . 1 3 . . 1 3 . . 1 1 1 Terminals 7 | . . . 1 . . 2 . . . . . . . 2 . . 1 . . . 1 . . Botnet 4 | . . . 1 . . 1 . . . . . . . 1 . . . . . . 1 . . Disrupt 1 | . . . . . . . . . . . . . . 1 . . . . . . . . . Operators 1 | . . . . . . 1 . . . . . . . . . . . . . . . . . Sabotage 1 | . . . . . . . . . . . . . . . . . 1 . . . . . . Fabricators 4 | . . . . . . . . . 1 . . . . . . . . 2 . . . . 1 Prioritize 1 | . . . . . . . . . . . . . . . . . . 1 . . . . . Liberate 1 | . . . . . . . . . . . . . . . . . . . . . . . 1 Haulers 2 | . . . . . . . . . 1 . . . . . . . . 1 . . . . . Repair Stations 4 | . 1 . . . . . . . 1 . . . 1 . . . . 1 . . . . . Patch 4 | . 1 . . . . . . . 1 . . . 1 . . . . 1 . . . . . Recycling Units 4 | . . . . . . 3 . . . . . . . 1 . . . . . . . . . Reject 3 | . . . . . . 2 . . . . . . . 1 . . . . . . . . . Mask 1 | . . . . . . 1 . . . . . . . . . . . . . . . . . Scanalyzers . | . . . . . . . . . . . . . . . . . . . . . . . . Garrison Access 4 | . . . . . . 1 . . 2 . . . . . . . . . . . . 1 . Jam 4 | . . . . . . 1 . . 2 . . . . . . . . . . . . 1 . Data Cores Recovered 2 | . . . 1 . . . . . 1 . . . . . . . . . . . . . . Used 1 | . . . . . . . . . 1 . . . . . . . . . . . . . . Hacking Detections 83 | . 5 . 8 . 4 12 2 . 21 . . 7 1 5 . . 3 2 . . 5 1 7 Full Trace Events 20 | . 1 . 1 . . 3 . . 7 . . 3 1 . . . 2 1 . . 1 . . Feedback Events 1 | . . . . . . . . . . . . . . . . . . . . . 1 . . Hackware Fried 1 | . . . . . . . . . . . . . . . . . . . . . 1 . . Feedback Blocked . | . . . . . . . . . . . . . . . . . . . . . . . . Robot Schematics Acquired . | . . . . . . . . . . . . . . . . . . . . . . . . Robots Built 6 | . . . . . . . . . 3 . . . . . . . . 3 . . . . . Authchips . | . . . . . . . . . . . . . . . . . . . . . . . . Time 209 | . . . . . . . . . 116 . . . . . . . . 93 . . . . . Total Robot Build Rating 30 | . . . . . . . . . 9 . . . . . . . . 21 . . . . . Part Schematics Acquired 2 | . . . 1 . . . . . 1 . . . . . . . . . . . . . . Parts Built 5 | . . . . . . . . . 3 . . 1 . . . . . 1 . . . . . Authchips . | . . . . . . . . . . . . . . . . . . . . . . . . Time 424 | . . . . . . . . . 318 . . 53 . . . . . 53 . . . . . Total Part Build Rating 30 | . . . . . . . . . 18 . . 6 . . . . . 6 . . . . . Part Studies Acquired 13 | . . . 2 . 1 . . . 3 . . 5 . . . . . . . . 1 . 1 Parts Repaired 5 | . . . 1 . . 2 2 . . . . . . . . . . . . . . . . Time 192 | . . . 26 . . 102 64 . . . . . . . . . . . . . . . . Parts Recycled . | . . . . . . . . . . . . . . . . . . . . . . . . Recycled Matter 387 | . . . . . . . . . 387 . . . . . . . . . . . . . . Retrieved Matter . | . . . . . . . . . . . . . . . . . . . . . . . . Retrieved Components 2 | . . . . . . . . . . . . . . . . . . . . . . 2 . Parts Scanalyzed 2 | . . . 1 . . . . . 1 . . . . . . . . . . . . . . Part Schematics Acquired 2 | . . . 1 . . . . . 1 . . . . . . . . . . . . . . Parts Damaged . | . . . . . . . . . . . . . . . . . . . . . . . . Bothacking | -11 -10 -10 -9 -9 -8 -8 -7 -7 -7 -7 -7 -6 -5 -5 -5 -5 -5 -4 -4 -4 -3 -2 -1 ------------ Run | Yrd Mat Min Mat Min Mat Sto Fac Was Fac Low Low Fac Fac Ext Cet Arc Hub Fac Upp Upp Res Res Acc Used RIF Installer . | . . . . . . . . . . . . . . . . . . . . . . . . Robots Hacked 5 | . . . . . . . . . . . . . 1 1 . . . . 1 . 1 1 . Non-combat 4 | . . . . . . . . . . . . . 1 . . . . . 1 . 1 1 . Combat 1 | . . . . . . . . . . . . . . 1 . . . . . . . . . Robot Hacks Applied 6 | . . . . . . . . . . . . . 1 1 . . . . 1 . 2 1 . parse_system 5 | . . . . . . . . . . . . . . 1 . . . . 1 . 2 1 . find_chute 1 | . . . . . . . . . . . . . 1 . . . . . . . . . . Relay Couplers Released 3 | . . . . . . . . . 3 . . . . . . . . . . . . . . Machine Destruction 3 | . . . . . . . . . 3 . . . . . . . . . . . . . . Fabnet Peak Effective % . | . . . . . . . . . . . . . . . . . . . . . . . . Robots Rewired 15 | . 1 . . . . . . . . . . . 3 11 . . . . . . . . . Allies Hacked 1 | . . . . . . . 1 . . . . . . . . . . . . . . . . Hacks Repelled . | . . . . . . . . . . . . . . . . . . . . . . . . Allies | -11 -10 -10 -9 -9 -8 -8 -7 -7 -7 -7 -7 -6 -5 -5 -5 -5 -5 -4 -4 -4 -3 -2 -1 -------- Run | Yrd Mat Min Mat Min Mat Sto Fac Was Fac Low Low Fac Fac Ext Cet Arc Hub Fac Upp Upp Res Res Acc Total Allies 51 | . 1 1 1 . . 11 . 1 3 . . . 3 22 5 . . 3 . . . . . Largest Group 19 | . 1 1 1 1 1 11 11 11 11 . . . 1 19 18 18 14 3 . . . . . Highest-Rated Group 954 | . 6 31 55 55 52 224 224 239 239 . . . 30 662 954 954 723 144 . . . . . Highest-Rated Ally 159 | . 6 31 55 55 52 51 51 51 51 . . . 30 159 159 152 96 48 . . . . . Total Orders 24 | . 4 . . 3 . . . . 5 . . . 3 . . . . 9 . . . . . STAY 14 | . 2 . . 2 . . . . 2 . . . 1 . . . . 7 . . . . . ROAM 1 | . . . . . . . . . 1 . . . . . . . . . . . . . . FOLLOW 7 | . 2 . . 1 . . . . 2 . . . . . . . . 2 . . . . . AID 2 | . . . . . . . . . . . . . 2 . . . . . . . . . . Ally Attacks 633 | . . . 13 27 20 47 29 98 163 . . . 8 28 73 . 102 25 . . . . . Total Damage 13643 | . . . 146 557 486 844 391 1334 2596 . . . 228 564 1635 . 3926 936 . . . . . Kills 109 | . . . 2 8 14 14 2 5 23 . . . 2 6 9 . 20 4 . . . . . Allies Corrupted 10 | . . . . . . . . 1 . . . . 1 . . . 7 1 . . . . . Allies Melted . | . . . . . . . . . . . . . . . . . . . . . . . . Intel | -11 -10 -10 -9 -9 -8 -8 -7 -7 -7 -7 -7 -6 -5 -5 -5 -5 -5 -4 -4 -4 -3 -2 -1 ------- Run | Yrd Mat Min Mat Min Mat Sto Fac Was Fac Low Low Fac Fac Ext Cet Arc Hub Fac Upp Upp Res Res Acc Active Infowar (turns) 5412 | . . . 776 . . 9 . . 28 . . 2 255 . . . . 1140 277 . 1 1291 1633 Optics 1627 | . . . . . . . . . . . . . . . . . . . . . . 579 1048 Sensors 1738 | . . . . . . . . . 28 . . 2 255 . . . . 1135 . . . . 318 Zeronet 437 | . . . . . . . . . . . . . . . . . . . . . . 288 149 Traps 294 | . . . 285 . . 9 . . . . . . . . . . . . . . . . . Seismic 855 | . . . 491 . . . . . . . . . . . . . . . . . . . 364 Jamming 3163 | . . . . . . . . . . . . . . . . . . 1114 277 . 1 583 1188 Robot Analysis Total 2 | . 2 . . . . . . . . . . . . . . . . . . . . . . Derelict Logs Recovered 4 | . . 1 . 2 . . . . . . . . . . . . . . . 1 . . . Drone Launches . | . . . . . . . . . . . . . . . . . . . . . . . . Drone Recoveries . | . . . . . . . . . . . . . . . . . . . . . . . . Exploration | -11 -10 -10 -9 -9 -8 -8 -7 -7 -7 -7 -7 -6 -5 -5 -5 -5 -5 -4 -4 -4 -3 -2 -1 ------------- Run | Yrd Mat Min Mat Min Mat Sto Fac Was Fac Low Low Fac Fac Ext Cet Arc Hub Fac Upp Upp Res Res Acc Turns Passed 31233 | 120 1756 824 2155 1141 972 4553 591 212 5751 670 77 2166 954 2309 475 112 248 1140 327 271 1360 1416 1633 Spaces Moved 13439 | 59 610 451 919 483 429 1565 312 95 2743 384 49 960 385 826 193 39 118 406 193 378 740 415 687 Core 717 | 1 . . . . . . . . . . . . . . . . . . 105 378 122 . 111 Treads 7618 | 58 388 . 565 483 429 1565 39 . 523 . . 46 385 826 193 39 118 406 88 . 480 415 572 Legs . | . . . . . . . . . . . . . . . . . . . . . . . . Wheels 4962 | . 222 451 354 . . . 273 95 2220 384 49 914 . . . . . . . . . . . Hover 142 | . . . . . . . . . . . . . . . . . . . . . 138 . 4 Flight . | . . . . . . . . . . . . . . . . . . . . . . . . Fastest Speed 40 | 50 160 175 175 200 200 200 130 130 130 160 160 160 160 160 160 160 160 160 50 50 40 166 50 Average Speed 169 | 158 237 175 190 200 200 200 153 130 148 160 160 164 161 207 166 160 166 161 140 51 138 171 149 Slowest Speed 480 | 160 320 175 200 240 200 200 210 130 240 160 160 240 226 226 213 160 480 240 240 150 240 270 240 Overloaded Moves . | . . . . . . . . . . . . . . . . . . . . . . . . Propulsion Burnouts . | . . . . . . . . . . . . . . . . . . . . . . . . Robots Hopped . | . . . . . . . . . . . . . . . . . . . . . . . . Potential Cave-ins 2 | . . . . . . . . . . . . . . . . . . . . . . 2 . Cave-ins Triggered . | . . . . . . . . . . . . . . . . . . . . . . . . Exploration Rate (%) 40 | 3 74 64 58 73 32 97 7 64 56 59 9 22 9 83 66 53 16 8 40 26 14 9 27 Regions Visited 23 Branch Regions 11 Pre-discovered Areas 2 | . . . . 2 . . . . . . . . . . . . . . . . . . . Known Exits Taken 4 | . . . 1 . . . . . . . 1 1 1 . . . . . . . . . . Unknown Exits Taken 17 | 1 1 1 . 1 1 1 . . 1 1 . . . 1 1 1 1 1 1 1 1 1 . Scrap Searched 7 | . . 2 . 1 . . . . . 2 . . . . . . . . . 2 . . . Spaces Dug 340 | . . . 1 27 . 15 . . 24 . . 1 2 1 . . 136 . 7 18 3 64 41 Terrain Destroyed 1043 | . . . 10 27 . 59 . . 288 2 . 51 46 22 1 . 139 57 37 20 6 79 199 Melee 21 | . . . 1 . . 6 . . 1 . . . . . . . . . . 5 3 . 5 Projectile 139 | . . . . . . . . . 8 2 . 9 18 22 1 . 3 20 9 . 3 20 24 AOE 882 | . . . 9 27 . 53 . . 279 . . 42 28 . . . 135 37 28 15 . 59 170 Terrain Rammed . | . . . . . . . . . . . . . . . . . . . . . . . . Walls Destroyed . | . . . . . . . . . . . . . . . . . . . . . . . . Machines Disabled . | . . . . . . . . . . . . . . . . . . . . . . . . Actions | -11 -10 -10 -9 -9 -8 -8 -7 -7 -7 -7 -7 -6 -5 -5 -5 -5 -5 -4 -4 -4 -3 -2 -1 --------- Run | Yrd Mat Min Mat Min Mat Sto Fac Was Fac Low Low Fac Fac Ext Cet Arc Hub Fac Upp Upp Res Res Acc Total 19577 | 77 799 475 1234 575 498 2688 408 140 3901 407 48 1429 582 1274 310 74 136 784 236 437 1011 985 1069 Wait 3245 | 7 88 8 138 36 13 777 70 13 533 1 . 226 68 214 56 23 . 278 2 48 105 397 144 Move 13417 | 58 609 450 918 482 428 1564 312 94 2742 383 48 959 384 825 192 38 117 405 192 377 739 414 687 Hop . | . . . . . . . . . . . . . . . . . . . . . . . . Pick Up 231 | 3 22 6 36 1 7 33 5 2 25 6 . 16 7 11 8 1 . 4 . . 17 15 6 Fast Attach 189 | 6 6 . 4 . 4 6 5 1 21 . . 17 8 15 7 2 1 14 1 . 30 18 23 Attach 113 | . . . 5 3 1 7 4 . 18 1 . 16 3 7 2 . . 10 7 . 2 3 24 Detach 82 | . 2 . 2 . 1 4 1 . 5 . . 8 6 4 5 . 1 6 6 . 12 3 16 Swap 315 | . 3 1 17 4 7 39 . . 95 . . 22 21 25 8 . . 10 . 3 9 25 26 Drop 268 | . 8 3 38 2 9 36 2 5 32 . . 26 6 15 13 2 . 5 14 . 8 30 14 Fire 1143 | 3 57 6 56 41 23 121 8 25 313 16 . 63 68 60 14 8 16 44 13 2 10 71 105 Melee 129 | . . . 1 . 1 30 . . 2 . . . 4 32 5 . . 4 1 6 21 1 21 Ram . | . . . . . . . . . . . . . . . . . . . . . . . . Kick . | . . . . . . . . . . . . . . . . . . . . . . . . Crush 33 | . 3 . 1 5 4 10 . . 1 . . . . 3 . . 1 2 . . . . 3 Escape Stasis 35 | . . . . . . 13 . . 16 . . . . 6 . . . . . . . . . Rewire 10 | . 1 . . . . . 1 . . . . . 7 1 . . . . . . . . . Trap 359 | . . 1 18 1 . 40 . . 98 . . 76 . 56 . . . 2 . 1 58 8 . Miscellaneous 8 | . . . . . . 8 . . . . . . . . . . . . . . . . . Route ------- -11/Scrapyard -10/Materials (discovered 3 exits: *Mat x2 / [*Min]) -10/Mines (discovered 2 exits: *Mat x2) -9/Materials (discovered 4 exits: *Mat x2 / *Min x2) -9/Mines (discovered 2 exits: *Mat x2) -8/Materials -8/Storage -7/Factory -7/Waste -7/Factory (discovered 4 exits: *Fac x3 / *Low) -7/Lower Caves -7/Lower Caves -6/Factory -5/Factory -5/Extension (discovered 2 exits: *Fac / *Cet) -5/Cetus (discovered 2 exits: *Fac / [*Arc]) -5/Archives -5/Hub_04(d) -4/Factory -4/Upper Caves -4/Upper Caves (discovered 2 exits: *Res / War) -3/Research -2/Research -1/Access History --------- Turn | Location | Event 7 | -11/Scrapyard | Discovered new exit (range 15) 121 | -11/Scrapyard | Entered Materials 302 | -10/Materials | Discovered new exit (range 16) 315 | -10/Materials | Build established: Mutant 737 | -10/Materials | Discovered new exit (range 14) 1720 | -10/Materials | Discovered new exit (range 13) 1877 | -10/Materials | Entered Mines 1877 | -10/Mines | Accompanied by 1 ally 2046 | -10/Mines | Found a hidden stash of uninstalled traps 2256 | -10/Mines | Discovered new exit (range 7) 2515 | -10/Mines | Found a Scrap Suit stashed away for nefarious purposes 2520 | -10/Mines | Found Scrap Suit 2541 | -10/Mines | Deemed a non-threat by the Exiles lab entrance 2690 | -10/Mines | Discovered new exit (range 7) 2691 | -10/Mines | Met a Derelict testing a Signal Generator 2701 | -10/Mines | Entered Materials 2701 | -9/Materials | Accompanied by 1 ally 2701 | -9/Materials | Evolved 2 slots: Propulsion x1, Utility x1 2702 | -9/Materials | Identified exit to Mines 3083 | -9/Materials | Central database locked down 3181 | -9/Materials | Discovered new exit (range 9) 3858 | -9/Materials | Build established: Scavenger-Mutant 4223 | -9/Materials | Botcube activated 4245 | -9/Materials | Botcube completed mutation into legged form, armed with 2 guns. 4343 | -9/Materials | Discovered new exit (range 6) 4465 | -9/Materials | Repaired Lgt. Treads+ 4856 | -9/Materials | Entered Mines 4856 | -9/Mines | Accompanied by 1 ally 4888 | -9/Mines | Learned location of Recycling (-8) 4940 | -9/Mines | Learned location of Zion (-7) 4970 | -9/Mines | A weapon hastily lodged in a ceiling crevice suddenly fell to the ground 5247 | -9/Mines | Discovered new exit (range 12) 5725 | -9/Mines | Discovered new exit (range 7) 5776 | -9/Mines | Assembled infested the area 5781 | -9/Mines | Assisted by a Guerilla fighting off Assembled 5997 | -9/Mines | Entered Materials 5997 | -8/Materials | Accompanied by 1 ally 5997 | -8/Materials | Evolved 2 slots: Utility x2 5997 | -8/Materials | Discovered new exit (range 7) 6882 | -8/Materials | Build established: Mutant 6969 | -8/Materials | Entered Storage 6969 | -8/Storage | Accompanied by 1 ally 7389 | -8/Storage | Repaired Broken Imp. Assault Rifle 7533 | -8/Storage | Garrison activated, responded to threat 7816 | -8/Storage | Found Botcube 7875 | -8/Storage | Garrison activated, responded to threat 8188 | -8/Storage | Build established: Scavenger-Mutant 9044 | -8/Storage | Repaired Insulated Plating 9369 | -8/Storage | First assault squad dispatched 9989 | -8/Storage | Discovered new exit (range 16) 11173 | -8/Storage | Botcube activated 11197 | -8/Storage | Botcube completed mutation into treaded form, armed with 2 guns. 11268 | -8/Storage | Assisted by bots powering up and referring to "LRC-V3" 11522 | -8/Storage | Entered Factory 11522 | -7/Factory | Accompanied by 11 allies 11522 | -7/Factory | Evolved 2 slots: Propulsion x1, Weapon x1 11797 | -7/Factory | Repaired Insulated Plating 11818 | -7/Factory | Build established: Commander-Gunner 11825 | -7/Factory | Repaired Lgt. Treads+ 12113 | -7/Factory | Sucked down chute 12113 | -7/Factory | Entered Waste 12114 | -7/Waste | Met a frightened Derelict 12119 | -7/Waste | Spotted C-40 Crusher 12128 | -7/Waste | EMP discharged 12135 | -7/Waste | Allies destroyed C-40 Crusher 12139 | -7/Waste | Spotted C-40 Crusher 12144 | -7/Waste | Spotted C-40 Crusher 12151 | -7/Waste | Allies destroyed C-40 Crusher 12156 | -7/Waste | Spotted C-40 Crusher 12159 | -7/Waste | Allies destroyed C-40 Crusher 12172 | -7/Waste | Destroyed C-40 Crusher 12197 | -7/Waste | Spotted C-40 Crusher 12211 | -7/Waste | Allies destroyed C-40 Crusher 12218 | -7/Waste | 11 allies followed down the chute 12228 | -7/Waste | EMP discharged 12228 | -7/Waste | System corruption reached 10% 12229 | -7/Waste | Spotted C-40 Crusher 12242 | -7/Waste | Allies destroyed C-40 Crusher 12254 | -7/Waste | Discovered new exit (range 16) 12325 | -7/Waste | Entered Factory 12325 | -7/Factory | Accompanied by 11 allies 12335 | -7/Factory | Garrison activated, responded to threat 12481 | -7/Factory | Build established: Commander-Tank 12725 | -7/Factory | First assault squad dispatched 12729 | -7/Factory | Discovered new exit (range 9) 13050 | -7/Factory | Lost 4 allies 13313 | -7/Factory | Fabricated G-47 Trooper? 13739 | -7/Factory | Discovered new exit (range 9) 13808 | -7/Factory | Build established: Tank 15295 | -7/Factory | Fabricated Hvy. Treads? 15474 | -7/Factory | Build established: Gunner 15557 | -7/Factory | Discovered new exit (range 16) 15721 | -7/Factory | Identified exit to Factory 15770 | -7/Factory | Garrison activated, responded to threat 15850 | -7/Factory | Destroyed 8 combat bots 15886 | -7/Factory | Discovered new exit (range 16) 16456 | -7/Factory | Lost 3 parts (2n1w) 17163 | -7/Factory | Fabricated Hvy. Treads? 17600 | -7/Factory | Core integrity fell below 50% 17601 | -7/Factory | High security lockdown imminent 17675 | -7/Factory | Destroyed 15 combat bots 17680 | -7/Factory | Fabricated Hvy. Treads (x1) 17681 | -7/Factory | High security lockdown engaged 17891 | -7/Factory | Sterilization system engaged 17891 | -7/Factory | Non-combat units ordered to evacuate 17893 | -7/Factory | Build established: Mutant 17927 | -7/Factory | Lost 4 parts (1n2u1w) 17991 | -7/Factory | Combat units ordered to evacuate 18024 | -7/Factory | Destroyed 17 combat bots 18076 | -7/Factory | Entered Lower Caves 18238 | -7/Lower Caves | Build established: Tank 18383 | -7/Lower Caves | Attracted the attention of an 0b10 checkpoint 18628 | -7/Lower Caves | Entered a destroyed Warlord outpost 18727 | -7/Lower Caves | Discovered new exit (range 14) 18746 | -7/Lower Caves | Entered another Lower Caves area 18812 | -7/Lower Caves | Discovered exit to Factory (range 7) 18823 | -7/Lower Caves | Entered Factory 18823 | -6/Factory | Evolved 2 slots: Power x1, Utility x1 19122 | -6/Factory | Build established: Scavenger-Tank 19523 | -6/Factory | First assault squad dispatched 19684 | -6/Factory | Fabricated Hvy. Treads? 19843 | -6/Factory | Found Hvy. Insulated Plating 19855 | -6/Factory | Found Hvy. Insulated Plating 20531 | -6/Factory | Build established: Scientist-Tank 20539 | -6/Factory | Unchained authorized (6S-H0T) 20916 | -6/Factory | Destroyed 9 combat bots 20917 | -6/Factory | Lost 3 parts (1p1n1u) 20946 | -6/Factory | Discovered new exit (range 14) 20987 | -6/Factory | Identified exit to Factory 20989 | -6/Factory | Entered another Factory area 20989 | -5/Factory | Evolved 2 slots: Propulsion x1, Utility x1 21289 | -5/Factory | First assault squad dispatched 21343 | -5/Factory | Build established: Tank 21898 | -5/Factory | Discovered new exit (range 5) 21903 | -5/Factory | Identified exit to Extension 21918 | -5/Factory | Garrison activated, responded to threat 21943 | -5/Factory | Entered Extension 22731 | -5/Extension | Spotted B-75 Beast 22790 | -5/Extension | Build established: Scavenger-Tank 22801 | -5/Extension | Destroyed B-75 Beast 22846 | -5/Extension | Spotted B-75 Beast 22872 | -5/Extension | Destroyed B-75 Beast 22959 | -5/Extension | Rescued a captive Derelict 22960 | -5/Extension | Rescued a captive Derelict 23111 | -5/Extension | Rescued a captive Derelict 23457 | -5/Extension | Build established: Commander-Tank 23721 | -5/Extension | Rescued a captive Derelict 23902 | -5/Extension | Rescued A7 24027 | -5/Extension | Rescued a captive Derelict 24054 | -5/Extension | Rescued a captive Derelict 24055 | -5/Extension | Rescued a captive Derelict 24091 | -5/Extension | Rescued a captive Derelict 24098 | -5/Extension | Rescued a captive Derelict 24098 | -5/Extension | Rescued a captive Derelict 24152 | -5/Extension | Discovered new exit (range 10) 24154 | -5/Extension | Discovered new exit (range 6) 24192 | -5/Extension | Lost 4 parts (2n2u) 24252 | -5/Extension | Entered Cetus 24252 | -5/Cetus | Accompanied by 18 allies (A7) 24257 | -5/Cetus | Acquired a Cetus Manufacturing Module code from A7 24280 | -5/Cetus | Spotted Cetus Guard 24280 | -5/Cetus | Spotted Cetus Guard 24285 | -5/Cetus | Spotted Cetus Guard 24286 | -5/Cetus | Spotted Cetus Guard 24300 | -5/Cetus | Allies destroyed Cetus Guard 24306 | -5/Cetus | Allies destroyed Cetus Guard 24309 | -5/Cetus | Allies destroyed Cetus Guard 24310 | -5/Cetus | Allies destroyed Cetus Guard 24433 | -5/Cetus | Started Cetus Manufacturing Module 24446 | -5/Cetus | Escorted A7 to Cetus Mainframe 24458 | -5/Cetus | Manufactured an Enhanced Grunt 24471 | -5/Cetus | Discovered new exit (range 15) 24483 | -5/Cetus | Manufactured an Enhanced Grunt 24483 | -5/Cetus | Build established: Scavenger-Tank 24500 | -5/Cetus | Spotted Cetus Guard 24500 | -5/Cetus | Spotted Cetus Guard 24505 | -5/Cetus | Allies destroyed Cetus Guard 24506 | -5/Cetus | Spotted Cetus Guard 24506 | -5/Cetus | Spotted Cetus Guard 24508 | -5/Cetus | Manufactured an Enhanced Grunt 24511 | -5/Cetus | Allies destroyed Cetus Guard 24515 | -5/Cetus | Allies destroyed Cetus Guard 24520 | -5/Cetus | Destroyed Cetus Guard 24533 | -5/Cetus | Manufactured an Enhanced Grunt 24546 | -5/Cetus | Found Med. Regenerative Plating 24558 | -5/Cetus | Manufactured an Enhanced Grunt 24569 | -5/Cetus | Discovered new exit (range 15) 24577 | -5/Cetus | Met Revision 17 24585 | -5/Cetus | System corruption reached 10% 24727 | -5/Cetus | Entered Archives 24727 | -5/Archives | Accompanied by 18 allies (A7) 24732 | -5/Archives | Received a hacking code to weaken MAIN.C 24780 | -5/Archives | Met Zhirov 24786 | -5/Archives | Reinforcements dispatched to Archives 24793 | -5/Archives | Discovered new exit (range 13) 24831 | -5/Archives | Reinforcements dispatched to Archives 24839 | -5/Archives | Entered Hub_04(d) 24839 | -5/Hub_04(d) | Accompanied by 14 allies 24997 | -5/Hub_04(d) | Disrupted transfer network 25030 | -5/Hub_04(d) | Network Hub disabled 25038 | -5/Hub_04(d) | Network Hub disabled 25048 | -5/Hub_04(d) | Spotted Lightning 25050 | -5/Hub_04(d) | Unchained authorized (6S-H0T) 25050 | -5/Hub_04(d) | Spotted Lightning 25050 | -5/Hub_04(d) | Spotted Lightning 25050 | -5/Hub_04(d) | Allies destroyed Lightning 25051 | -5/Hub_04(d) | Destroyed Lightning 25061 | -5/Hub_04(d) | Destroyed Lightning 25066 | -5/Hub_04(d) | Discovered new exit (range 9) 25067 | -5/Hub_04(d) | Spotted Lightning 25067 | -5/Hub_04(d) | Spotted Lightning 25069 | -5/Hub_04(d) | Spotted Lightning 25081 | -5/Hub_04(d) | Found Prototype Device 25081 | -5/Hub_04(d) | Identified Exp. EM Shield 25087 | -5/Hub_04(d) | Entered Factory 25087 | -4/Factory | Evolved 2 slots: Propulsion x1, Utility x1 25096 | -4/Factory | Lost 10 allies 25291 | -4/Factory | Fabricated L-61 Swordsman (x3) 25443 | -4/Factory | Fabricated Hvy. Treads? 25505 | -4/Factory | Discovered new exit (range 16) 25587 | -4/Factory | First assault squad dispatched 25728 | -4/Factory | Lost 3 parts (1p1n1w) 26068 | -4/Factory | Found Prototype Ballistic Gun 26068 | -4/Factory | Identified 6S-H0T's Six Shooter 26227 | -4/Factory | Entered Upper Caves 26256 | -4/Upper Caves | Lost 8 parts (2p2n4u) 26503 | -4/Upper Caves | Spotted B-86 Titan 26535 | -4/Upper Caves | Lost 4 parts (1p1n2u) 26544 | -4/Upper Caves | Discovered new exit (range 8) 26554 | -4/Upper Caves | Entered another Upper Caves area 26678 | -4/Upper Caves | Discovered new exit (range 7) 26678 | -4/Upper Caves | Identified exit to Warlord 26679 | -4/Upper Caves | Encountered a Warlord checkpoint 26725 | -4/Upper Caves | Build established: Mutant 26780 | -4/Upper Caves | Attracted the attention of an 0b10 outpost 26825 | -4/Upper Caves | Entered Research 26825 | -3/Research | Evolved 2 slots: Utility x2 26849 | -3/Research | Imp. Hacking Suite fried by hacking feedback 26964 | -3/Research | Lost 4 parts (2p2n) 27025 | -3/Research | Revision forces began assault on 0b10 27034 | -3/Research | Met up with Revision 17++ 27525 | -3/Research | Research terminal network offline 27802 | -3/Research | Build established: Scavenger-Tank 27880 | -3/Research | Discovered new exit (range 10) 28185 | -3/Research | Entered another Research area 28185 | -2/Research | Evolved 2 slots: Power x1, Utility x1 28400 | -2/Research | Unchained authorized (6S-H0T) 28591 | -2/Research | Found 6S-H0T's Six Shooter 28760 | -2/Research | Found Prototype Launcher 28760 | -2/Research | Identified Point Singularity Launcher 28787 | -2/Research | Garrison activated, responded to threat 29185 | -2/Research | First assault squad dispatched 29226 | -2/Research | Build established: Tank 29290 | -2/Research | Destroyed 6S-H0T 29295 | -2/Research | Found 6S-H0T's Six Shooter 29303 | -2/Research | Found 6S-H0T's SS Cartridge 29313 | -2/Research | Found Prototype Processor 29313 | -2/Research | Identified Zeronet Interface 29316 | -2/Research | Found 6S-H0T's SS Cartridge 29585 | -2/Research | Build established: Scavenger-Tank 29590 | -2/Research | Discovered new exit (range 6) 29601 | -2/Research | Entered Access 29601 | -1/Access | Evolved 2 slots: Utility x2 30036 | -1/Access | Spotted B-99 Colossus 30426 | -1/Access | Destroyed 7 combat bots 30601 | -1/Access | First assault squad dispatched 30665 | -1/Access | Build established: Tank 30872 | -1/Access | System corruption reached 10% 30930 | -1/Access | Core integrity fell below 50% 30969 | -1/Access | Lost 22 parts (4p3n8u7w) 31160 | -1/Access | Core integrity fell below 20% 31234 | -1/Access | Destroyed by P-80 Master with Gamma Rifle Last Messages --------------- 31099_ K-01 Serf collects debris. 31103_ Acquired Quantum Reactor. 31105_ System corrupted: Matter fused (-6). 31111_ K-01 Serf collects debris. 31141_ System corrupted: Component data lost. 31174_ Slammed into B-74 Champion. 31183_ Plasma Lance severed. 31183_ Dropped Exp. EM Shield. 31184_ Acquired Plasma Lance. 31185_ Adv. Heavy Siege Treads destroyed. 31193_ Quantum Reactor severed. 31194_ Adv. Heavy Siege Treads destroyed. 31195_ Dropped Quantum Reactor. 31195_ Dropped Nanoactuators. 31196_ Dropped Energy Well. 31196_ Extracted 1 energy. 31197_ 2YUHQTYQG8UV%P7 ILZ9=I&V2&2% 31212_ Acquired 13 matter. 31233_ P-80 Master resets P-80 Master, system corruption cleaned. Map ----- +----------------------------------------------------+ | ###?#??# +????????????????? | | %!## #?????####/########## #????????????????? | | # # ##?????# #??????? #????????????????? | | # # ######### #??????????????????????????? | | """G""" ##" #??????????????????????????? | | """ """ #"# #??????????????????????????? | | + + #??????????????????????????? | | ### " #??????????????????????????? | | !#?# """ #????????????????????????### | | ]#?# """ #????????????????????????# | | # ##########?# " #????????????????????????# | | #######??????##########????????????????????????# | | #????????????????????????????????????????# | | #????????????????????????????????????????# | | #????????????????????????????????????????? | | #??????????????????????????????????????????? | | #??????????????????????????????????????????? | | #???????????????????????????????########??## | | #???????????????????????????????# ?# | | #???????????????????????????????# ?# | | #???????????????????????????????# # | | #"#####???????????????????????????????# # | | ##"#####????###########???????????????# # | | #????# #???????????????# | | #????# #?""""""""""""??# # | | #????# #?#@ #??# | | =! #????# ### #??# # | | ! #????# ### p #??# | | = #????? #?# p #??# | | #??????? #?# #??# | | ]% #????????? ??#" #??# # | | ###+###############+#####" ############+# | | == ! * =p| % ! | | ! %k | | ##+##/#############+####################+###### | | # #?????? *###?????????????? =! | | # #???? #?????????????????? !% | | # " #??# " #???????????????? "" =|= | | # """ #??# """ #??????????????# "" !%[ | | # """ #??# """ /??????????????+ """""" !! | | / " #??# " ##?????????????# """""" | | # #??# #??????????????#! "" | | # #??# #??????????????# "" | | ###########??# #??????????????# | | ?????????????##########???????????????? ? | | ??????????????????????????????????????? ?? | | ?????????????????????????????????????? ??? | | ??????????????????????????????????????????######## | | ?????????????????????????????????????????????????? | | ?????????????????????????????????????????????????? | +----------------------------------------------------+ Best States ------------- Heat Dissipation 158 Coolant Potential 100 Energy Generation 65 Energy Capacity 950 Matter Stores 300 Matter Capacity 300 Sight Range 22 Robot Scan Range 16 Terrain Scan Density 10 Jamming Range 16 Additional Mass Support 9 EM Shielding 2 Corruption Containment 12 Armor Coverage 1650 Resistance: KI 30 Resistance: TH 10 Resistance: EM 75 Core Shielding 20 Melee Speed Boost 30 Evasion (%) 57 Targeting Accuracy 16 Melee Accuracy 8 Target Analysis 5 Core Analysis 6 Armor Integrity Analysis 40 Recoil Reduction 6 Force Boost 30 Offensive Hacking 12 Defensive Hacking 12 Trap Extractor Capacity 6 Item Schematics ----------------- Arm. Wheel | -9/Materials | Scanalyzed Hvy. Treads | -7/Factory | Scanalyzed Robot Schematics ------------------ None Fabricated ------------ G-47 Trooper | x3 | -7/Factory | Preloaded Hvy. Treads | x1 | -7/Factory Hvy. Treads | x1 | -7/Factory Hvy. Treads | x1 | -7/Factory Hvy. Treads | x1 | -6/Factory L-61 Swordsman | x3 | -4/Factory | Preloaded Hvy. Treads | x1 | -4/Factory Repaired ---------- Lgt. Treads | 67% | -9/Materials Imp. Assault Rifle | 55% | -8/Storage | Broken Insulated Plating | 8% | -8/Storage Insulated Plating | 31% | -7/Factory Lgt. Treads | 59% | -7/Factory Studied --------- Lgt. Treads | -9/Materials | Hacked Hvy. Assault Rifle | -9/Materials | Hacked Imp. Treads | -8/Materials | Hacked Arm. Wheel | -7/Factory | Hacked Missile Launcher | -7/Factory | Hacked Rocket Launcher | -7/Factory | Hacked Arm. Huge Wheel | -6/Factory | Hacked Hvy. Missile Launcher | -6/Factory | Hacked Phase Cannon | -6/Factory | Hacked Imp. Deuterium Engine | -6/Factory | Hacked Angular Momentum Engine | -6/Factory | Hacked Power Maul | -3/Research | Hacked Com. HERF Cannon | -1/Access | Hacked Alien Tech Used ----------------- None Achievements -------------- None Challenges ------------ None Game ------ Seed DataTacticalDrive Manual? 0 Play Time 03:23:02 Cumulative 2079.2 hours Start 2026.01.08 @ 01:06:51 End 2026.01.09 @ 03:42:07 Sessions 9 Manual Loads 0 Difficulty Rogue Special Mode None Game No. 1338 Rogue 1334 Adventurer 4 Explorer 0 Win Type - Total 286 Types 214/13/22/11/3/1/4/10/5/3 Lore% 98 Gallery% 96 Achievement% 88 Wizard Run 0 Options --------- Layout 2 ASCII 0 Keyboard 1 Movement Vi Keybinds 0 Fullscreen 0 Font 24/Terminus Map View 59x48 Zoom Use 0% Tactical HUD 1 Map Filters NONE Filters NONE Steam 1 RUN: 6f10d2eb-0e1a-42c1-a257-179824ed4946